bitfinex-derivatives/quotes_ETHF0:USTF0_20210109
["timestamp","ask_amount","ask_price","bid_price","bid_amount"]
[1610200108917,4.00959,1222.3,1222.1,4.00959]
[1610200109715,4.00959,1222.3,1222.1,54.00959]
[1610200109918,34.00959,1222.3,1222.1,54.00959]
[1610200110117,34.00959,1222.3,1222.2,1.43458605]
[1610200110517,34.00959,1222.3,1222.2,51.43458605]
[1610200111019,34.00959,1222.3,1222.2,1.43458605]
[1610200112718,43.63259,1222.3,1222.2,1.43458605]
[1610200112920,34.00959,1222.3,1222.2,51.43458605]
[1610200113319,130.46143733,1222.3,1222.2,51.43458605]
[1610200113520,130.46143733,1222.3,1222.2,1.43458605]
[1610200114220,130.46143733,1222.3,1221.9,50.0]
[1610200114621,30.0,1222.1,1221.9,50.0]
[1610200114821,32.0727,1222.1,1221.9,50.0]
[1610200115022,4.00959,1222.0,1221.6,118.54829]
[1610200115221,34.00959,1222.0,1221.6,118.54829]
[1610200115625,34.00959,1222.0,1221.8,50.0]
[1610200116024,34.00959,1222.0,1221.9,50.0]
[1610200116224,4.00959,1222.0,1221.9,50.0]
[1610200116422,30.0,1222.2,1221.9,50.0]
[1610200116830,30.0,1222.2,1221.7,50.0]
[1610200117030,30.0,1222.2,1222.0,54.00959]
[1610200117430,30.0,1222.2,1222.0,4.00959]
[1610200118030,30.0,1222.2,1222.0,54.00959]
[1610200118430,30.0,1222.2,1222.0,4.00959]
[1610200118631,30.0,1222.2,1222.0,54.00959]
[1610200119030,34.00959,1222.1,1222.0,54.00959]
[1610200119631,34.00959,1222.1,1222.0,4.00959]
[1610200119830,34.00959,1222.1,1222.0,54.00959]
[1610200120031,34.00959,1222.1,1222.0,55.4444581]
[1610200120230,4.00959,1222.1,1222.0,55.4444581]
[1610200121534,4.00959,1222.1,1222.0,5.4444581]
[1610200121933,4.00959,1222.1,1222.0,55.4444581]
[1610200122534,40.66030285,1222.5,1222.0,55.4444581]
[1610200122735,53.49056213,1222.6,1222.2,65.5962]
[1610200122935,83.50328376,1222.7,1222.2,65.5962]
[1610200123135,87.51287376,1222.7,1222.4,4.00959]
[1610200123337,83.50328376,1222.7,1222.4,4.00959]
[1610200123737,70.67255897,1222.7,1222.4,4.00959]
[1610200124839,70.67255897,1222.7,1222.5,50.0]
[1610200125138,34.00959,1222.6,1222.5,50.0]
[1610200127841,34.00959,1222.6,1222.4,50.0]
[1610200128240,34.00959,1222.6,1222.1,113.2577]
[1610200128441,30.0,1222.6,1222.1,113.2577]
[1610200128641,30.0,1222.6,1222.2,50.0]
[1610200129141,30.0,1222.6,1222.5,4.00959]
[1610200129641,30.0,1222.6,1222.5,54.00959]
[1610200131742,30.0,1222.6,1222.5,4.00959]
[1610200132343,30.0,1222.6,1222.5,54.00959]
[1610200132843,30.0,1222.6,1222.5,4.00959]
[1610200133445,30.0,1222.6,1222.5,50.0]
[1610200134246,30.0,1222.6,1222.5,7.536]
[1610200134845,30.0,1222.6,1222.5,8.97010384]
[1610200135245,34.00959,1222.6,1222.5,8.97010384]
[1610200136446,34.00959,1222.6,1222.5,7.536]
[1610200138046,74.76063207,1222.6,1222.5,7.536]
[1610200138447,74.76063207,1222.6,1222.5,57.536]
[1610200140650,74.76063207,1222.6,1222.5,7.536]
[1610200144859,74.76063207,1222.6,1222.5,57.536]
[1610200145560,34.00959,1222.6,1222.5,57.536]
[1610200145760,74.7666511,1222.6,1222.5,57.536]
[1610200146063,34.00959,1222.6,1222.5,57.536]
[1610200147865,34.00959,1222.6,1222.5,50.0]
[1610200148465,4.00959,1222.6,1222.5,50.0]
[1610200149066,4.00959,1222.6,1222.5,51.42950988]
[1610200151269,4.00959,1222.8,1222.5,55.43909988]
[1610200151470,4.00959,1222.8,1222.5,117.70789988]
[1610200153072,4.00959,1222.8,1222.6,1.42799813]
[1610200153272,53.94328482,1223.5,1222.7,4.00959]
[1610200153472,53.94328482,1223.5,1222.8,6.5547]
[1610200153674,40.99650368,1223.4,1222.7,6.43619]
[1610200153874,53.92905102,1223.4,1222.8,52.7433]
[1610200154175,83.9281477,1223.5,1222.8,52.7433]
[1610200154375,83.9281477,1223.5,1222.8,54.17150476]
[1610200154576,40.99131203,1223.4,1222.8,54.17150476]
[1610200154777,70.99131203,1223.4,1222.8,54.17150476]
[1610200154977,30.0,1223.4,1222.8,54.17150476]
[1610200155378,4.00959,1223.0,1222.9,4.00959]
[1610200155580,83.1159823,1223.4,1222.9,4.00959]
[1610200155778,83.1159823,1223.4,1222.9,5.43779322]
[1610200156678,53.1159823,1223.4,1222.9,5.43779322]
[1610200156878,53.08540956,1223.5,1222.9,5.43779322]
[1610200157078,83.08540956,1223.5,1222.9,4.00959]
[1610200157281,4.00959,1223.1,1222.9,4.00959]
[1610200157479,4.00959,1223.1,1222.9,54.00959]
[1610200157880,53.08204236,1223.4,1222.9,54.00959]
[1610200158080,53.09142829,1223.5,1222.9,54.00959]
[1610200159179,40.16381751,1223.4,1222.9,54.00959]
[1610200159379,44.17340751,1223.4,1223.3,4.00959]
[1610200159581,4.00959,1223.4,1223.3,4.00959]
[1610200160581,4.00959,1223.4,1223.3,50.0]
[1610200160780,34.00959,1223.4,1223.3,50.0]
[1610200161182,4.00959,1223.4,1223.3,50.0]
[1610200161382,4.00959,1223.4,1223.3,54.00959]
[1610200162283,4.00959,1223.4,1223.3,4.00959]
[1610200162485,57.13394137,1223.4,1223.3,4.00959]
[1610200162786,4.00959,1223.4,1223.3,4.00959]
[1610200162988,4.00959,1223.4,1223.3,54.00959]
[1610200163689,4.00959,1223.4,1223.3,50.0]
[1610200164092,34.00959,1223.4,1223.3,50.0]
[1610200164390,74.19098244,1223.4,1223.3,50.0]
[1610200164796,87.11513309,1223.4,1223.3,50.0]
[1610200164992,87.11513309,1223.4,1223.2,50.0]
[1610200168997,87.11513309,1223.4,1223.1,50.0]
[1610200169398,4.00959,1223.2,1223.1,54.00959]
[1610200170100,4.00959,1223.2,1223.1,50.0]
[1610200171200,4.00959,1223.2,1223.1,51.42781259]
[1610200172202,34.00959,1223.2,1223.1,1.42781259]
[1610200172600,30.0,1223.2,1223.1,1.42781259]
[1610200172799,53.10554309,1223.4,1223.1,1.42781259]
[1610200173200,53.10554309,1223.4,1223.1,51.42781259]
[1610200173401,40.18139244,1223.4,1223.3,4.00959]
[1610200173600,57.06279704,1223.5,1223.3,4.00959]
[1610200174100,57.06279704,1223.5,1223.3,5.43690015]
[1610200174700,44.1533432,1223.5,1223.3,5.43690015]
[1610200174901,44.1533432,1223.5,1223.3,1.42731015]
[1610200175302,57.0612776,1223.5,1223.3,1.42731015]
[1610200175501,57.0612776,1223.5,1223.4,1.42731384]
[1610200176701,57.85596171,1223.5,1223.4,1.42731384]
[1610200176902,57.85596171,1223.5,1223.2,1.42728654]
[1610200177305,4.00959,1223.3,1223.2,1.42728654]
[1610200178302,4.00959,1223.3,1223.2,51.42728654]
[1610200178702,53.84637171,1223.5,1223.2,51.42728654]
[1610200178903,53.84637171,1223.5,1223.3,51.8279]
[1610200179104,40.93843731,1223.5,1223.3,101.8279]
[1610200179304,44.94802731,1223.5,1223.4,4.00959]
[1610200179505,4.00959,1223.5,1223.4,55.43669507]
[1610200182510,40.96105087,1223.6,1223.4,55.43669507]
[1610200182712,1.7716,1223.7,1223.4,55.43669507]
[1610200182910,53.88023156,1223.8,1223.4,55.43669507]
[1610200183113,53.91031116,1223.9,1223.4,55.43669507]
[1610200183310,53.91031116,1223.9,1223.8,4.00959]
[1610200184311,53.91031116,1223.9,1223.8,54.00959]
[1610200184511,72.0781019,1224.0,1223.8,54.00959]
[1610200184911,53.95717137,1223.9,1223.8,4.00959]
[1610200185212,53.16119613,1223.9,1223.8,4.00959]
[1610200185715,53.16119613,1223.9,1223.8,54.00959]
[1610200186517,71.31365896,1224.0,1223.8,54.00959]
[1610200186917,71.31365896,1224.0,1223.9,50.0]
[1610200187419,19.19676368,1224.0,1223.9,50.0]
[1610200187819,71.32706173,1224.0,1223.9,50.0]
[1610200188517,26.17200024,1224.0,1223.9,50.0]
[1610200188720,19.19730257,1224.0,1223.9,50.0]
[1610200188920,29.45228336,1224.0,1223.9,50.0]
[1610200189320,71.36898226,1224.0,1223.9,50.0]
[1610200189520,67.35939226,1224.0,1223.9,50.0]
[1610200189720,14.1186,1224.0,1223.9,50.0]
[1610200190923,67.38245432,1224.0,1223.9,50.0]
[1610200191324,14.1186,1224.0,1223.9,50.0]
[1610200193728,14.1186,1224.0,1223.9,51.42483223]
[1610200193927,12.0,1224.0,1223.9,51.42483223]
[1610200196629,12.0,1224.0,1223.9,50.0]
[1610200197829,12.0,1224.0,1223.9,51.42454039]
[1610200213454,16.00959,1224.0,1223.9,51.42454039]
[1610200213854,69.32276808,1224.0,1223.9,51.42454039]
[1610200214054,16.92847851,1224.0,1223.9,51.42454039]
[1610200214454,18.91527851,1224.0,1223.9,50.0]
[1610200214856,48.91527851,1224.0,1223.9,50.0]
[1610200215057,63.87881177,1224.0,1223.9,50.0]
[1610200215460,50.94477789,1224.0,1223.9,50.0]
[1610200215657,58.94254573,1224.0,1223.9,50.0]
[1610200215958,50.94477789,1224.0,1223.9,50.0]
[1610200217858,67.8902515,1224.0,1223.7,50.0]
[1610200218458,44.9523235,1223.8,1223.7,50.0]
[1610200218958,47.90753128,1223.8,1223.7,50.0]
[1610200219257,47.90753128,1223.8,1223.3,52.8419]
[1610200219458,4.00959,1223.4,1223.3,52.8419]
[1610200220461,34.00959,1223.4,1223.3,52.8419]
[1610200221462,87.13062201,1223.4,1223.3,52.8419]
[1610200222265,87.13062201,1223.4,1222.7,6.43619]
[1610200222464,87.13062201,1223.4,1223.0,50.0]
[1610200222865,40.15744459,1223.3,1222.8,50.0]
[1610200223066,30.0,1223.2,1222.5,46.5201]
[1610200223266,30.0,1223.2,1222.6,50.0]
[1610200223469,4.00959,1222.7,1222.6,50.0]
[1610200223669,4.00959,1222.7,1222.5,46.5201]
[1610200224067,4.00959,1222.7,1222.6,50.0]
[1610200224768,4.00959,1222.7,1222.6,51.44533425]
[1610200225470,4.00959,1223.0,1222.6,55.45492425]
[1610200227377,4.00959,1223.0,1222.7,50.0]
[1610200227575,4.00959,1223.0,1222.9,4.00959]
[1610200228977,4.00959,1223.0,1222.9,5.45426012]
[1610200229376,4.00959,1223.0,1222.9,55.45426012]
[1610200232478,4.00959,1223.0,1222.9,5.45426012]
[1610200233078,4.00959,1223.0,1222.9,55.45426012]
[1610200233277,34.00959,1223.0,1222.9,51.44467012]
[1610200233478,34.00959,1223.0,1222.9,1.44467012]
[1610200235781,34.00959,1223.0,1222.8,1.44510566]
[1610200236784,61.3654,1222.9,1222.8,1.44510566]
[1610200236985,91.3654,1222.9,1222.7,1.44642685]
[1610200237184,102.20867071,1222.9,1222.7,1.44642685]
[1610200237383,23.77589233,1222.8,1222.7,1.44642685]
[1610200237582,57.78548233,1222.8,1222.7,1.44642685]
[1610200237785,47.26299034,1222.8,1222.7,1.44642685]
[1610200238389,47.26299034,1222.8,1221.9,57.8242]
[1610200238589,62.17593691,1222.8,1221.9,107.8242]
[1610200238790,53.08440729,1222.5,1221.9,107.8242]
[1610200238990,30.0,1222.4,1221.9,107.8242]
[1610200239191,55.01580729,1222.5,1221.9,107.8242]
[1610200239590,4.00959,1222.1,1221.9,57.8242]
[1610200239996,4.00959,1222.1,1222.0,50.0]
[1610200240193,4.00959,1222.1,1222.0,51.44695414]
[1610200242895,53.11184049,1222.7,1222.0,51.44695414]
[1610200243095,55.54131863,1222.8,1222.0,51.44695414]
[1610200243594,4.00959,1222.1,1222.0,55.45654414]
[1610200243795,4.00959,1222.1,1222.0,5.45654414]
[1610200244299,2.4087,1222.8,1222.0,5.45654414]
[1610200244696,131.57719633,1222.9,1222.0,5.45654414]
[1610200245097,53.13686442,1222.8,1222.0,5.45654414]
[1610200245497,4.00959,1222.2,1222.0,5.45654414]
[1610200245796,4.00959,1222.2,1222.1,1.44663675]
[1610200248396,4.00959,1222.2,1222.1,51.44663675]
[1610200249800,40.20321438,1222.8,1222.1,50.0]
[1610200249999,12.93576895,1222.9,1222.2,64.8988]
[1610200250000,53.16114007,1222.9,1222.2,64.8988]
[1610200250198,53.16114007,1222.9,1222.2,114.8988]
[1610200250403,53.1788871,1223.0,1222.2,114.8988]
[1610200250602,53.1788871,1223.0,1222.3,50.0]
[1610200250803,55.64694734,1223.1,1222.3,50.0]
[1610200251502,55.64694734,1223.1,1222.9,4.00959]
[1610200251701,53.19124734,1223.1,1222.9,4.00959]
[1610200251906,53.30079428,1223.2,1222.9,4.00959]
[1610200252506,53.30079428,1223.2,1223.0,50.0]
[1610200252807,53.33851105,1223.3,1223.0,50.0]
[1610200253106,53.23868228,1223.3,1223.0,50.0]
[1610200253707,4.00959,1223.1,1222.9,4.00959]
[1610200254509,4.00959,1223.1,1223.0,51.4449284]
[1610200256611,34.00959,1223.1,1223.0,51.4449284]
[1610200257410,34.00959,1223.1,1223.0,1.4449284]
[1610200257811,87.34150745,1223.1,1223.0,1.4449284]
[1610200258011,122.29116796,1223.1,1223.0,1.4449284]
[1610200258210,83.96479,1223.1,1223.0,1.4449284]
[1610200258412,109.62383146,1223.1,1222.5,2.4328]
[1610200258611,109.62383146,1223.1,1222.4,50.0]
[1610200258812,109.62383146,1223.1,1222.3,50.0]
[1610200259011,53.33263882,1222.8,1222.3,50.0]
[1610200259211,83.33263882,1222.8,1222.3,50.0]
[1610200259411,53.33263882,1222.8,1222.3,50.0]
[1610200259613,4.00959,1222.4,1222.3,50.0]
[1610200259813,83.34848422,1222.9,1222.3,50.0]
[1610200260011,83.34848422,1222.9,1222.4,1.44617454]
[1610200260212,53.34848422,1222.9,1222.4,1.44617454]
[1610200260412,53.34848422,1222.9,1222.5,50.0]
[1610200260612,83.3461077,1223.0,1222.5,50.0]
[1610200260812,53.34726613,1222.9,1222.4,51.44617454]
[1610200261011,83.34726613,1222.9,1222.4,51.44617454]
[1610200261412,83.34726613,1222.9,1222.6,1.45090858]
[1610200261611,4.00959,1222.7,1222.6,1.45090858]
[1610200262715,4.00959,1222.7,1222.6,51.45090858]
[1610200263114,34.00959,1222.7,1222.6,51.45090858]
[1610200263313,4.00959,1222.7,1222.6,51.45090858]
[1610200263515,4.00959,1222.7,1222.6,1.45090858]
[1610200263914,4.00959,1222.7,1222.6,51.45090858]
[1610200264316,4.00959,1222.7,1222.6,50.0]
[1610200264514,4.00959,1222.7,1222.5,50.0]
[1610200265318,4.00959,1222.7,1222.3,50.0]
[1610200265620,30.0,1222.8,1222.6,1.45091146]
[1610200265820,30.0,1222.8,1222.6,51.45091146]
[1610200266220,30.0,1222.8,1222.6,1.45091146]
[1610200266921,30.0,1222.8,1222.3,1.45084579]
[1610200267120,30.0,1222.8,1222.7,50.0]
[1610200267322,30.0,1222.8,1222.3,51.45084579]
[1610200267621,4.00959,1222.4,1222.3,51.45084579]
[1610200267822,4.00959,1222.4,1222.3,1.45084579]
[1610200268123,4.00959,1222.4,1222.3,51.45084579]
[1610200272526,4.00959,1222.4,1222.3,1.45084579]
[1610200274927,4.00959,1222.4,1222.3,51.45084579]
[1610200275329,34.00959,1222.4,1222.3,1.45084579]
[1610200276127,65.84595607,1222.4,1222.3,1.45084579]
[1610200276327,87.37540494,1222.4,1222.3,1.45084579]
[1610200276527,37.22171706,1222.4,1222.3,1.45084579]
[1610200276727,37.22171706,1222.4,1222.0,1.45268159]
[1610200276728,60.24395779,1222.4,1222.0,1.45268159]
[1610200276927,30.0,1222.2,1222.0,1.45268159]
[1610200277130,32.1289,1222.2,1222.0,1.45268159]
[1610200277528,48.37821024,1222.1,1222.0,1.45268159]
[1610200277731,37.37516957,1222.1,1222.0,1.45268159]
[1610200278127,37.37516957,1222.1,1221.4,51.8374]
[1610200278528,30.0,1221.8,1221.4,51.8374]
[1610200278929,53.44775096,1221.9,1221.4,51.8374]
[1610200279129,53.44775096,1221.9,1221.4,1.8374]
[1610200279329,83.44775096,1221.9,1221.4,1.8374]
[1610200279730,4.00959,1221.5,1221.4,1.8374]
[1610200280731,4.00959,1221.5,1221.4,50.0]
[1610200281134,4.00959,1221.5,1221.4,51.45373357]
[1610200281534,52.26429,1221.5,1221.4,51.45373357]
[1610200283842,82.26429,1221.5,1221.4,51.45373357]
[1610200284042,82.26429,1221.5,1221.4,1.45373357]
[1610200284843,34.00959,1221.5,1221.1,1.6875]
[1610200285243,80.67919,1221.5,1220.9,50.0]
[1610200285848,12.59039,1221.0,1220.9,50.0]
[1610200286450,42.59039,1221.0,1220.9,50.0]
[1610200286846,34.00959,1221.0,1220.9,51.45464686]
[1610200287246,34.00959,1221.0,1220.9,1.45464686]
[1610200287450,35.92989,1221.0,1220.9,1.45464686]
[1610200287649,89.11643088,1221.0,1220.9,1.45464686]
[1610200288048,39.80427205,1221.0,1220.9,1.45464686]
[1610200288251,39.80427205,1221.0,1220.2,50.0]
[1610200288449,30.0,1220.8,1219.9,50.0]
[1610200288850,70.21608911,1220.8,1219.7,96.5238]
[1610200289048,70.21608911,1220.8,1219.7,46.5238]
[1610200289251,40.21608911,1220.8,1219.9,50.0]
[1610200289649,53.15024713,1220.8,1219.9,50.0]
[1610200289850,4.00959,1220.0,1219.9,2.4618]
[1610200290853,4.00959,1220.0,1219.9,52.4618]
[1610200291051,4.00959,1220.0,1219.9,53.91879259]
[1610200293154,81.5416,1220.9,1219.9,53.91879259]
[1610200293356,13.2032,1220.9,1219.9,53.91879259]
[1610200293554,13.2032,1220.9,1219.9,117.02969259]
[1610200293755,13.2032,1220.9,1220.2,4.00959]
[1610200293954,13.2032,1220.9,1220.2,12.71259]
[1610200294357,13.2032,1220.9,1220.3,50.0]
[1610200295158,13.2032,1220.9,1220.4,50.0]
[1610200295358,13.2032,1220.9,1220.4,51.45591508]
[1610200295760,4.00959,1220.5,1220.4,1.45591508]
[1610200296659,4.00959,1220.5,1220.1,51.45698233]
[1610200297061,51.2856,1220.3,1220.1,51.45698233]
[1610200297260,81.2856,1220.3,1220.1,1.45698233]
[1610200297860,4.00959,1220.2,1220.1,1.45698233]
[1610200298060,34.00959,1220.2,1220.1,1.45698233]
[1610200298663,58.05123303,1220.2,1220.1,1.45698233]
[1610200299261,39.2866843,1220.2,1220.1,1.45698233]
[1610200299461,30.0,1220.0,1219.5,109.9961867]
[1610200299663,30.0,1219.7,1219.5,109.9961867]
[1610200299861,4.00959,1219.6,1219.5,109.9961867]
[1610200303362,4.00959,1219.6,1219.5,159.9961867]
[1610200304663,4.00959,1219.6,1219.5,109.9961867]
[1610200304862,4.00959,1219.6,1219.5,111.45556264]
[1610200305063,4.00959,1219.6,1219.5,161.45556264]
[1610200306464,2.1207,1220.2,1219.5,161.45556264]
[1610200306861,40.06941539,1220.4,1219.6,50.0]
[1610200307063,54.85328288,1220.5,1219.6,51.736]
[1610200307262,54.85328288,1220.5,1219.7,50.0]
[1610200307463,40.07240523,1220.4,1219.7,114.91267185]
[1610200307662,54.84672347,1220.5,1219.8,50.0]
[1610200307862,4.00959,1220.2,1219.8,50.0]
[1610200308062,4.00959,1220.2,1219.9,50.0]
[1610200308662,4.00959,1220.2,1219.7,64.91267185]
[1610200308663,4.00959,1220.2,1219.8,50.0]
[1610200309064,4.00959,1220.2,1220.0,1.45778366]
[1610200309263,53.01973348,1220.9,1220.0,51.45778366]
[1610200309464,40.11459341,1220.9,1220.0,51.45778366]
[1610200309663,40.11459341,1220.9,1220.0,1.45778366]
[1610200309863,4.00959,1220.4,1220.2,4.00959]
[1610200310267,53.04215236,1221.0,1220.3,64.8096]
[1610200310464,53.04215236,1221.0,1220.3,66.9988]
[1610200310665,40.16992626,1221.1,1220.3,66.9988]
[1610200310964,40.18422506,1221.2,1220.3,66.9988]
[1610200311265,53.11273372,1221.3,1220.3,66.9988]
[1610200311865,40.18519267,1221.3,1220.7,4.00959]
[1610200312064,40.18519267,1221.3,1220.7,6.42639]
[1610200312265,53.13530803,1221.4,1220.7,6.42639]
[1610200313065,40.19115172,1221.3,1220.7,6.42639]
[1610200313268,40.19115172,1221.3,1220.7,2.4168]
[1610200313467,53.11697813,1221.3,1220.8,1.4559053]
[1610200313868,4.00959,1220.9,1220.8,51.4559053]
[1610200314067,4.00959,1220.9,1220.8,1.4559053]
[1610200315366,4.00959,1220.9,1220.8,51.4559053]
[1610200315867,4.00959,1220.9,1220.8,55.4654953]
[1610200316668,53.15272413,1221.6,1220.8,55.4654953]
[1610200317270,53.15272413,1221.6,1220.9,50.0]
[1610200317669,53.15272413,1221.6,1220.9,51.45483893]
[1610200317869,4.00959,1221.0,1220.9,51.45483893]
[1610200318276,4.00959,1221.0,1220.9,1.45483893]
[1610200318673,4.00959,1221.0,1220.9,51.45483893]
[1610200319074,4.00959,1221.0,1220.9,1.45483893]
[1610200320273,4.00959,1221.0,1220.7,11.7578]
[1610200321778,4.00959,1221.0,1220.8,1.45511285]
[1610200323280,4.00959,1221.0,1220.7,11.7578]
[1610200323880,4.00959,1220.8,1220.7,11.7578]
[1610200324081,4.00959,1220.8,1220.7,61.7578]
[1610200324482,4.00959,1220.8,1220.7,11.7578]
[1610200326187,4.00959,1220.8,1220.7,2.4168]
[1610200326387,4.00959,1220.8,1220.3,52.1892]
[1610200326588,30.0,1220.7,1220.3,52.1892]
[1610200326790,30.0,1220.7,1220.3,2.1892]
[1610200327191,34.00959,1220.8,1220.2,50.0]
[1610200327491,34.00959,1220.8,1220.4,1.45638246]
[1610200327890,4.00959,1220.5,1220.4,1.45638246]
[1610200328693,4.00959,1220.5,1220.3,1.45673978]
[1610200330094,4.00959,1220.5,1220.4,50.0]
[1610200331497,4.00959,1220.5,1220.4,51.45606046]
[1610200337604,4.00959,1220.5,1220.4,1.45606046]
[1610200338405,4.00959,1220.5,1220.3,67.10409492]
[1610200338607,4.00959,1220.5,1220.4,50.0]
[1610200339705,4.00959,1220.5,1220.4,51.45570091]
[1610200340106,4.00959,1220.5,1220.4,55.46529091]
[1610200342211,4.00959,1220.5,1220.4,51.45570091]
[1610200347918,4.00959,1220.5,1220.4,1.45570091]
[1610200348316,4.00959,1220.5,1220.4,51.45570091]
[1610200348716,4.00959,1220.5,1220.4,1.45570091]
[1610200355226,4.00959,1220.5,1220.3,1.45656851]
[1610200357226,34.00959,1220.5,1220.3,1.45656851]
[1610200358927,4.00959,1220.5,1220.3,1.45656851]
[1610200360232,4.00959,1220.5,1220.4,50.0]
[1610200360632,4.00959,1220.5,1220.3,1.45656851]
[1610200361031,4.00959,1220.5,1220.4,1.45645359]
[1610200361235,3.99522676,1220.5,1220.4,1.45645359]
[1610200362738,3.99522676,1220.5,1220.3,1.4563362]
[1610200363137,3.99522676,1220.5,1220.3,51.4563362]
[1610200363737,3.99522676,1220.5,1220.3,1.4563362]
[1610200364138,3.99522676,1220.5,1220.4,1.4564603]
[1610200365439,3.99522676,1220.5,1220.3,1.45642578]
[1610200365840,3.99522676,1220.5,1220.4,50.0]
[1610200366040,33.99522676,1220.5,1220.4,50.0]
[1610200367042,33.99522676,1220.5,1220.4,1.45667239]
[1610200368445,33.99522676,1220.5,1220.3,1.45724546]
[1610200368650,74.83441474,1220.5,1220.3,1.45724546]
[1610200368849,33.99522676,1220.5,1220.3,1.45724546]
[1610200369749,33.99522676,1220.5,1219.9,1.45723462]
[1610200370048,4.00959,1220.0,1219.9,51.45723462]
[1610200370450,4.00959,1220.0,1219.9,1.45723462]
[1610200370451,34.00959,1220.0,1219.9,1.45723462]
[1610200371050,4.00959,1220.0,1219.9,1.45723462]
[1610200371250,4.00959,1220.0,1219.7,1.45794748]
[1610200371649,30.0,1219.9,1219.7,1.45794748]
[1610200372152,4.00959,1219.8,1219.7,1.45794748]
[1610200381261,4.00959,1219.8,1219.7,9.13904748]
[1610200381461,55.62068303,1220.5,1219.7,1.45794748]
[1610200381760,1.8975,1220.5,1219.9,55.4475]
[1610200381961,53.74373435,1220.6,1219.9,55.4475]
[1610200382161,4.00959,1220.0,1219.9,59.45709]
[1610200382761,53.78029553,1220.8,1219.9,4.00959]
[1610200382961,53.78029553,1220.8,1220.3,66.2401]
[1610200383163,55.61553752,1220.9,1220.3,66.2401]
[1610200383363,53.82119092,1221.0,1220.3,66.2401]
[1610200383765,40.92611745,1221.0,1220.4,1.42629749]
[1610200384163,53.84432712,1221.1,1220.8,71.19849]
[1610200384363,53.87011844,1221.2,1220.8,71.19849]
[1610200384764,53.88537217,1221.3,1220.8,71.19849]
[1610200385163,53.91927964,1221.4,1220.8,71.19849]
[1610200385363,12.52123286,1221.4,1220.8,71.19849]
[1610200385563,53.93163451,1221.5,1220.8,71.19849]
[1610200385764,53.9472068,1221.6,1220.8,71.19849]
[1610200385965,53.9472068,1221.6,1220.8,45.19849]
[1610200386165,53.9472068,1221.6,1221.0,4.00959]
[1610200386367,53.9472068,1221.6,1221.0,6.56029]
[1610200386769,53.94762329,1221.7,1221.0,6.56029]
[1610200387166,55.59442329,1221.7,1221.0,6.56029]
[1610200387367,53.94762329,1221.7,1221.0,6.56029]
[1610200387767,53.91621824,1221.6,1221.0,6.56029]
[1610200388168,4.00959,1221.1,1221.0,6.56029]
[1610200392869,4.00959,1221.1,1221.0,2.5507]
[1610200393070,4.00959,1221.1,1220.6,53.2381]
[1610200394172,4.00959,1220.7,1220.6,57.24769]
[1610200395772,4.00959,1220.7,1220.6,5.82189]
[1610200396174,4.00959,1220.7,1220.6,1.8123]
[1610200396376,4.00959,1220.7,1220.5,50.0]
[1610200397275,40.89041738,1221.2,1220.5,50.0]
[1610200397475,40.89041738,1221.2,1220.5,52.0798]
[1610200397675,53.80367791,1221.3,1220.5,52.0798]
[1610200398177,53.80367791,1221.3,1221.0,4.00959]
[1610200398377,53.84008503,1221.4,1221.0,71.10359]
[1610200398577,53.86959216,1221.5,1221.0,71.10359]
[1610200398981,53.88448151,1221.6,1221.0,71.10359]
[1610200399979,53.88448151,1221.6,1221.0,121.10359]
[1610200400180,53.88448151,1221.6,1221.4,4.00959]
[1610200400780,40.96234096,1221.6,1221.4,4.00959]
[1610200400980,53.88717215,1221.7,1221.4,4.00959]
[1610200401380,53.89706854,1221.6,1221.4,4.00959]
[1610200401679,40.97190947,1221.6,1221.4,4.00959]
[1610200402181,4.00959,1221.5,1221.4,4.00959]
[1610200404180,57.92208613,1221.7,1221.4,4.00959]
[1610200404782,4.00959,1221.7,1221.4,4.00959]
[1610200405080,4.00959,1221.7,1221.5,50.0]
[1610200406380,4.00959,1221.7,1221.6,4.00959]
[1610200406785,4.00959,1221.7,1221.6,54.00959]
[1610200407585,4.00959,1221.7,1221.6,4.00959]
[1610200407787,4.00959,1221.7,1221.6,5.43245237]
[1610200407985,4.00959,1221.7,1221.6,55.43245237]
[1610200408186,4.00959,1221.7,1221.6,51.42286237]
[1610200409189,4.00959,1221.7,1221.6,50.0]
[1610200409993,4.00959,1221.7,1221.3,52.2287]
[1610200410192,46.2618,1221.6,1221.3,52.2287]
[1610200410391,4.00959,1221.4,1221.3,52.2287]
[1610200410691,4.00959,1221.4,1221.3,2.2287]
[1610200410992,4.00959,1221.4,1221.0,51.767]
[1610200411793,48.5523,1221.3,1221.0,1.767]
[1610200411993,48.5523,1221.3,1221.1,1.42461204]
[1610200412193,48.5523,1221.3,1221.1,3.28171204]
[1610200412394,4.00959,1221.2,1221.1,3.28171204]
[1610200412594,34.00959,1221.2,1221.1,3.28171204]
[1610200413194,87.79081859,1221.2,1221.1,1.42461204]
[1610200413394,58.72678529,1221.2,1220.6,50.0]
[1610200413794,30.0,1220.9,1220.5,52.0798]
[1610200414193,70.05646931,1220.9,1220.5,52.0798]
[1610200414393,4.00959,1220.6,1220.5,52.0798]
[1610200414594,34.00959,1220.6,1220.5,52.0798]
[1610200415093,4.00959,1220.6,1220.5,52.0798]
[1610200415693,4.00959,1220.6,1220.5,2.0798]
[1610200415894,4.00959,1220.6,1220.3,50.0]
[1610200416094,4.00959,1220.6,1220.2,1.9696]
[1610200416294,4.00959,1220.6,1220.3,4.00959]
[1610200416493,4.00959,1220.6,1220.3,5.73279]
[1610200416694,4.00959,1220.6,1220.4,50.0]
[1610200417094,4.00959,1220.6,1220.5,50.0]
[1610200417495,53.82440344,1221.2,1220.4,51.42611009]
[1610200418097,40.92856028,1221.2,1220.5,50.0]
[1610200418296,4.00959,1220.7,1220.6,4.00959]
[1610200418496,40.92856028,1221.2,1220.6,4.00959]
[1610200418695,40.92856028,1221.2,1220.6,57.20419]